bitfinex-derivatives/quotes_SOLF0:USTF0_20250114
["timestamp","ask_amount","ask_price","bid_price","bid_amount"]
[1736885893434,2.6766,186.91,186.83,3.2468]
[1736885893435,2.6766,186.91,186.86,2.6772]
[1736885893644,15.09258209,186.9,186.86,2.6772]
[1736885894446,12.41588209,186.9,186.79,14.10598209]
[1736885894748,2.6765,186.92,186.79,14.10598209]
[1736885894935,2.6765,186.92,186.82,12.41588209]
[1736885895141,12.41588209,186.93,186.82,12.41588209]
[1736885895142,12.41588209,186.93,186.9,2.6765]
[1736885895444,12.41588209,186.93,186.83,1.6601]
[1736885895845,12.41588209,186.93,186.9,2.6765]
[1736885896644,12.41588209,186.93,186.86,2.6772]
[1736885896844,12.41588209,186.93,186.83,1.6601]
[1736885897445,12.41588209,186.93,186.9,2.6766]
[1736885897742,12.41588209,186.93,186.83,1.6601]
[1736885898448,2.6765,186.91,186.87,2.677]
[1736885899546,2.6771,186.88,186.84,2.6775]
[1736885899849,18.07588209,186.87,186.78,100.75634304]
[1736885900341,12.41588209,186.84,186.72,12.41588209]
[1736885900542,12.41588209,186.84,186.72,13.99448209]
[1736885900742,2.6779,186.82,186.78,2.6784]
[1736885900948,12.41588209,186.81,186.72,1.5786]
[1736885901346,2.6782,186.8,186.75,2.6787]
[1736885901951,2.6782,186.8,186.72,1.5786]
[1736885903146,8.3382,186.8,186.72,1.5786]
[1736885903348,5.66,186.8,186.72,1.5786]
[1736885904555,5.66,186.8,186.76,2.6786]
[1736885905152,5.66,186.8,186.77,2.6785]
[1736885905550,5.66,186.8,186.72,1.5786]
[1736885906456,5.66,186.8,186.76,2.6785]
[1736885906753,5.66,186.8,186.72,1.5786]
[1736885907455,2.6783,186.79,186.74,2.6789]
[1736885908946,5.66,186.8,186.72,2.6791]
[1736885909151,21.43214005,186.79,186.66,3.4297]
[1736885909555,2.6788,186.75,186.7,2.6794]
[1736885909750,19.83534005,186.76,186.7,2.6794]
[1736885909954,19.83534005,186.76,186.66,1.7214]
[1736885910260,19.83534005,186.76,186.65,102.38958143]
[1736885910261,19.83534005,186.73,186.62,29.41914442]
[1736885910457,1.5968,186.79,186.62,29.41914442]
[1736885910458,19.83534005,186.7,186.62,29.41914442]
[1736885910759,2.6798,186.69,186.64,2.6803]
[1736885910948,2.6798,186.69,186.62,29.41914442]
[1736885911257,28.19484005,186.7,186.65,2.6802]
[1736885911453,5.68,186.7,186.59,1.7214]
[1736885911757,5.68,186.7,186.6,19.83534005]
[1736885912455,5.68,186.7,186.66,2.6801]
[1736885913659,5.68,186.7,186.67,2.6799]
[1736885913860,5.68,186.7,186.59,1.7214]
[1736885914559,5.68,186.7,186.69,2.6797]
[1736885915359,5.68,186.7,186.68,2.6798]
[1736885915660,5.68,186.7,186.6,19.83534005]
[1736885915862,195.0,186.74,186.63,19.83534005]
[1736885916753,5.68,186.76,186.63,19.83534005]
[1736885916754,8.3587,186.76,186.71,2.6792]
[1736885917265,25.51534005,186.76,186.71,2.6792]
[1736885918159,25.51534005,186.76,186.71,2.6793]
[1736885919062,28.19404005,186.76,186.71,2.6793]
[1736885919761,25.51534005,186.76,186.63,19.83534005]
[1736885919963,25.51534005,186.76,186.6,25.19734005]
[1736885920261,25.51534005,186.76,186.59,1.7214]
[1736885920262,19.83534005,186.73,186.59,1.7214]
[1736885920461,2.6796,186.7,186.65,2.6802]
[1736885920661,5.66,186.69,186.65,2.6802]
[1736885921064,8.3398,186.69,186.65,2.6802]
[1736885922163,8.3398,186.69,186.59,1.7214]
[1736885922364,5.66,186.69,186.66,2.6801]
[1736885924155,8.3397,186.69,186.66,2.6801]
[1736885924761,5.66,186.69,186.66,2.6801]
[1736885925462,5.66,186.69,186.68,2.6798]
[1736885925863,200.66,186.74,186.61,19.83534005]
[1736885926562,2.6792,186.73,186.68,2.6797]
[1736885926762,2.6792,186.73,186.61,19.83534005]
[1736885927065,2.6792,186.73,186.68,2.6797]
[1736885927463,2.6793,186.72,186.68,2.6797]
[1736885928767,2.6791,186.73,186.69,2.6796]
[1736885929469,15.08502649,186.73,186.69,2.6796]
[1736885930271,15.08502649,186.73,186.64,12.40592649]
[1736885930570,12.40592649,186.73,186.64,12.40592649]
[1736885930869,12.40592649,186.73,186.7,2.6795]
[1736885932377,12.40592649,186.73,186.71,2.6793]
[1736885932574,12.40592649,186.76,186.64,12.40592649]
[1736885932774,12.40592649,186.76,186.65,3.2472]
[1736885933074,18.06592649,186.79,186.67,12.40592649]
[1736885933274,12.40592649,186.79,186.68,1.5788]
[1736885933672,12.40592649,186.79,186.76,2.6786]
[1736885934372,5.66,186.8,186.78,2.6784]
[1736885934567,18.06592649,186.82,186.78,2.6784]
[1736885934880,2.6779,186.81,186.77,2.6785]
[1736885936074,12.40592649,186.79,186.75,2.6787]
[1736885936482,12.40592649,186.79,186.76,2.6786]
[1736885936675,12.40592649,186.79,186.7,12.40592649]
[1736885937068,12.40592649,186.79,186.75,2.6787]
[1736885937272,12.40592649,186.79,186.7,12.40592649]
[1736885938079,12.40592649,186.79,186.76,2.6786]
[1736885939974,12.40592649,186.79,186.68,1.5788]
[1736885940174,12.40592649,186.76,186.68,1.5788]
[1736885940677,2.6788,186.75,186.71,2.6793]
[1736885940866,2.6788,186.75,186.68,1.5788]
[1736885941278,15.08462649,186.76,186.72,2.6792]
[1736885942875,15.08502649,186.73,186.69,2.6796]
[1736885943677,12.40592649,186.73,186.65,3.2472]
[1736885943877,12.40592649,186.7,186.62,1.7104]
[1736885944974,12.40592649,186.7,186.59,1.5916]
[1736885945180,2.6797,186.69,186.59,1.5916]
[1736885945380,12.40592649,186.7,186.59,1.5916]
[1736885946985,15.08552649,186.7,186.65,2.6801]
[1736885947285,12.40592649,186.7,186.59,1.5916]
[1736885947483,2.6798,186.68,186.64,2.6803]
[1736885948086,8.3198,186.68,186.64,2.6803]
[1736885948388,5.64,186.68,186.65,2.6802]
[1736885949983,5.64,186.68,186.59,1.5916]
[1736885950189,12.40592649,186.67,186.62,2.6805]
[1736885951083,2.6802,186.66,186.62,2.6805]
[1736885951489,12.40592649,186.67,186.58,1.7104]
[1736885951684,12.40592649,186.64,186.55,100.8731781]
[1736885953888,12.40592649,186.61,186.49,7.38282503]
[1736885954091,12.40592649,186.61,186.51,12.40592649]
[1736885954484,12.40592649,186.64,186.54,12.40592649]
[1736885954988,12.40592649,186.64,186.6,2.6808]
[1736885956089,12.40592649,186.64,186.54,12.40592649]
[1736885956289,12.40592649,186.64,186.55,3.3923]
[1736885956693,12.40592649,186.64,186.56,1.7026]
[1736885957591,5.62,186.66,186.56,1.7026]
[1736885957795,5.62,186.66,186.57,12.40592649]
[1736885958898,5.62,186.66,186.63,2.6804]
[1736885961197,5.62,186.66,186.57,12.40592649]
[1736885961993,12.40592649,186.7,186.57,12.40592649]
[1736885962190,112.72592649,186.75,186.63,12.40592649]
[1736885962191,12.40592649,186.75,186.63,12.40592649]
[1736885962397,20.70482649,186.75,186.71,2.6793]
[1736885962790,18.02592649,186.75,186.64,4.9923]
[1736885962995,2.6791,186.73,186.67,2.6799]
[1736885963195,18.02592649,186.75,186.64,4.9923]
[1736885963490,2.679,186.74,186.69,2.6796]
[1736885963789,18.02592649,186.75,186.64,4.9923]
[1736885963996,12.40592649,186.72,186.64,1.7091]
[1736885964300,12.40592649,186.72,186.6,12.40592649]
[1736885964795,2.6795,186.7,186.66,2.68]
[1736885965193,12.40592649,186.72,186.66,2.68]
[1736885965393,2.6794,186.71,186.67,2.6799]
[1736885965592,12.40592649,186.72,186.6,12.40592649]
[1736885966097,2.6797,186.69,186.65,2.6801]
[1736885966294,12.40592649,186.72,186.6,12.40592649]
[1736885966999,2.6796,186.7,186.65,2.6801]
[1736885967195,12.40592649,186.72,186.65,2.6801]
[1736885967499,12.40592649,186.72,186.6,12.40592649]
[1736885968096,15.08522649,186.72,186.68,2.6798]
[1736885969202,12.40592649,186.72,186.69,2.6796]
[1736885970802,12.40592649,186.72,186.7,2.6795]
[1736885970998,12.40592649,186.72,186.6,12.40592649]
[1736885972800,12.40592649,186.72,186.63,12.40592649]
[1736885973598,2.6791,186.74,186.63,12.40592649]
[1736885974003,2.6791,186.74,186.7,2.6794]
[1736885974898,2.6791,186.74,186.63,12.40592649]
[1736885975101,2.6791,186.74,186.71,2.6794]
[1736885975302,12.40592649,186.75,186.63,12.40592649]
[1736885975606,18.00592649,186.75,186.63,12.40592649]
[1736885976506,12.40592649,186.75,186.63,12.40592649]
[1736885976804,15.08472649,186.75,186.63,12.40592649]
[1736885977001,15.08472649,186.75,186.71,2.6793]
[1736885978501,12.40592649,186.72,186.69,2.6796]
[1736885978700,12.40592649,186.72,186.6,12.40592649]
[1736885980208,15.08522649,186.72,186.68,2.6798]
[1736885983306,15.08522649,186.72,186.6,12.40592649]
[1736885983607,15.08522649,186.72,186.69,2.6796]
[1736885984506,12.40592649,186.72,186.59,17.37542649]
[1736885984712,2.6796,186.7,186.59,17.37542649]
[1736885985315,2.6794,186.71,186.67,2.6799]
[1736885985911,12.40592649,186.72,186.59,17.37542649]
[1736885986217,12.40592649,186.75,186.59,17.37542649]
[1736885986218,12.40592649,186.75,186.62,12.40592649]
[1736885986615,2.6793,186.72,186.62,12.40592649]
[1736885986806,12.40592649,186.75,186.62,12.40592649]
[1736885987008,15.08482649,186.75,186.71,2.6793]
[1736885987215,5.6,186.74,186.71,2.6793]
[1736885988420,5.6,186.74,186.72,2.6792]
[1736885988814,5.6,186.74,186.62,12.40592649]
[1736885989026,5.6,186.74,186.72,2.6791]
[1736885991318,7.93741249,186.73,186.72,2.6791]
[1736885995220,7.93741249,186.77,186.69,7.93741249]
[1736885995926,7.93741249,186.77,186.75,2.6787]
[1736885998014,7.93741249,186.77,186.69,1.5549]
[1736885998220,7.93741249,186.74,186.69,9.49231249]
[1736885998521,2.6785,186.78,186.69,9.49231249]
[1736885998522,7.93741249,186.76,186.69,9.49231249]
[1736886000224,7.93741249,186.76,186.75,2.6787]
[1736886000627,7.93741249,186.78,186.74,2.6789]
[1736886000824,7.93741249,186.78,186.71,7.93741249]
[1736886001423,7.93741249,186.78,186.73,2.6791]
[1736886001629,7.93741249,186.78,186.71,7.93741249]
[1736886002121,5.58,186.84,186.75,7.93741249]
[1736886002329,7.93741249,186.85,186.77,7.93741249]
[1736886002630,7.93741249,186.85,186.79,7.93741249]
[1736886003234,7.93741249,186.85,186.83,2.6776]
[1736886003626,15.06404053,186.88,186.83,2.6776]
[1736886003823,12.38704053,186.91,186.78,12.38704053]
[1736886004040,169.80935974,186.95,186.81,12.38704053]
[1736886004331,182.19640027,186.95,186.94,2.6761]
[1736886004522,182.19640027,186.95,186.84,12.38704053]
[1736886004725,182.19640027,186.95,186.85,3.3574]
[1736886004932,12.38704053,186.95,186.85,3.3574]
[1736886006231,12.38704053,186.98,186.85,3.3574]
[1736886006428,12.38704053,186.98,186.92,2.6762]
[1736886007024,12.38704053,186.98,186.85,3.3574]
[1736886007223,1.5856,187.1,186.95,12.38704053]
[1736886007430,0.89764834,187.09,187.01,12.38704053]
[1736886008030,3.167,187.1,187.01,12.38704053]
[1736886008240,384.47900473,187.13,187.04,12.38704053]
[1736886008241,15.06054053,187.13,187.04,12.38704053]
[1736886008431,6.47778937,187.12,187.04,12.38704053]
[1736886008624,5.58,187.12,187.04,12.38704053]
[1736886009135,5.58,187.12,187.05,2.6744]
[1736886009334,1.5814,187.14,187.07,12.38704053]
[1736886009935,5.58,187.16,187.1,12.38704053]
[1736886010132,2.6729,187.17,187.1,15.06084053]
[1736886010938,7.1656,187.18,187.02,12.38704053]
[1736886011134,12.38704053,187.16,186.96,4.9176]
[1736886011334,12.38704053,187.16,187.04,12.38704053]
[1736886011930,12.38704053,187.16,187.06,2.6743]
[1736886012130,12.38704053,187.13,187.01,12.38704053]
[1736886012538,12.38704053,187.1,186.98,12.38704053]
[1736886012737,12.38704053,187.07,186.96,1.6347]
[1736886012937,2.6749,187.02,186.95,12.38704053]
[1736886013142,5.58,187.01,186.92,12.38704053]
[1736886013338,5.58,187.01,186.91,1.6454]
[1736886013637,5.58,187.01,186.93,19.78852962]
[1736886014744,5.58,187.07,186.99,2.6753]
[1736886015038,5.58,187.07,186.96,19.78852962]
[1736886016242,5.58,187.07,187.01,2.675]
[1736886017037,5.58,187.07,186.96,19.78852962]
[1736886017239,5.58,187.07,187.03,2.6748]
[1736886017634,5.58,187.07,187.04,2.6746]
[1736886018544,2.6744,187.06,187.0,2.6752]
[1736886019247,2.6745,187.05,186.99,2.6753]
[1736886020343,2.6747,187.04,186.99,2.6753]
[1736886022248,19.78852962,187.05,186.91,1.6454]
[1736886022549,216.49122962,187.05,186.91,1.6454]
[1736886023746,19.78852962,187.02,186.89,1.7044]
[1736886023948,19.78852962,186.99,186.89,1.7044]
[1736886024146,5.58,186.98,186.88,1.7025]
[1736886024550,2.6758,186.96,186.91,2.6764]
[1736886024751,5.58,186.98,186.9,19.78852962]
[1736886025351,5.58,186.98,186.95,2.6758]
[1736886025551,5.58,186.98,186.9,19.78852962]
[1736886025956,5.58,186.98,186.93,2.6761]
[1736886026645,5.6,187.03,186.98,2.6755]
[1736886026855,5.6,187.03,186.9,19.78852962]
[1736886027049,2.675,187.02,186.9,19.78852962]
[1736886027248,5.6,187.03,186.95,2.6759]
[1736886027649,2.6754,187.0,186.95,2.6759]
[1736886027954,19.78852962,187.02,186.93,2.6762]
[1736886028158,21.44512962,187.02,186.88,1.7025]
[1736886028356,1.6566,187.02,186.97,2.6755]
[1736886028843,5.6,187.03,186.9,19.78852962]
[1736886029044,216.49122962,187.05,186.9,19.78852962]
[1736886029251,5.6,187.04,186.9,19.78852962]
[1736886029755,195.0,187.05,186.93,19.78852962]
[1736886029955,195.0,187.05,186.94,1.6373]
[1736886030256,7.3061,187.06,186.96,19.78852962]
[1736886030452,1.7061,187.06,186.96,19.78852962]
[1736886030753,5.6,187.09,186.96,19.78852962]
[1736886030954,5.6,187.09,186.99,19.78852962]
[1736886031149,5.6,187.09,187.02,2.6749]
[1736886031455,5.6,187.09,186.99,19.78852962]
[1736886031751,8.274,187.09,187.03,2.6747]
[1736886032156,5.6,187.09,187.03,2.6747]
[1736886032452,2.6741,187.08,187.03,2.6747]
[1736886032665,5.6,187.09,186.97,1.6571]
[1736886032957,2.6746,187.05,186.97,1.6571]
[1736886033350,2.6746,187.05,187.0,2.6751]
[1736886033550,5.6,187.09,186.97,1.6571]
[1736886033749,5.6,187.09,186.95,1.6737]
[1736886033750,2.6749,187.03,186.95,1.6737]
[1736886033951,19.78852962,187.08,186.95,1.6737]
[1736886033952,195.0,187.07,186.95,1.6737]
[1736886034355,2.675,187.02,186.95,1.6737]
[1736886035351,2.6748,187.04,186.95,1.6737]
[1736886035554,5.6,187.06,186.97,12.36328199]
[1736886036161,17.96328199,187.06,186.99,2.6753]
[1736886036358,2.6748,187.04,186.99,2.6753]
[1736886036552,2.6748,187.04,186.95,1.6737]
[1736886036752,17.96328199,187.06,186.97,2.6756]
[1736886037058,12.36328199,187.03,186.94,1.6373]
[1736886037759,12.36328199,187.0,186.9,1.6777]
[1736886038455,2.6757,186.97,186.9,1.6777]
[1736886038861,5.62,186.99,186.92,12.36328199]
[1736886039357,5.62,186.99,186.98,2.6755]
[1736886039550,2.6748,187.03,186.92,12.36328199]
[1736886039961,5.62,187.04,186.92,12.36328199]
[1736886040162,2.675,187.02,186.92,12.36328199]
[1736886040562,2.675,187.02,186.97,2.6755]
[1736886041262,12.36328199,187.03,186.92,12.36328199]
[1736886041567,2.6755,186.99,186.9,1.6777]
[1736886041765,12.36328199,187.03,186.9,1.6777]
[1736886041960,2.6754,186.99,186.9,1.6777]
[1736886042366,2.6754,186.99,186.94,2.676]
[1736886042562,2.6754,186.99,186.9,1.6777]
[1736886044065,2.6754,186.99,186.95,2.6759]
[1736886045960,2.6754,186.99,186.9,1.6777]
[1736886046157,2.6752,187.0,186.92,12.36328199]
[1736886047058,3.3268,187.02,186.96,2.6758]
[1736886047371,2.6754,186.99,186.96,2.6758]
[1736886048371,3.3268,187.02,186.94,2.6761]
[1736886048372,12.36328199,187.0,186.94,2.6761]
[1736886048665,12.36328199,186.97,186.87,100.70416729]
[1736886048870,195.0,187.01,186.89,2.6767]
[1736886048871,15.03968199,186.93,186.89,2.6767]
[1736886049567,2.6766,186.91,186.86,29.7978939]
[1736886049769,2.6766,186.91,186.83,12.36328199]
[1736886050269,2.6766,186.91,186.87,2.677]
[1736886050666,12.36328199,186.93,186.87,2.677]
[1736886050667,2.6767,186.9,186.87,2.677]
[1736886051070,2.6767,186.9,186.8,14.20322199]
[1736886051071,5.62,186.89,186.8,0.21134]
[1736886051274,2.6773,186.86,186.8,0.21134]
[1736886051572,2.6773,186.86,186.82,2.6778]
[1736886052367,12.36328199,186.87,186.84,2.6775]
[1736886052768,4.3987,186.88,186.84,2.6775]
[1736886053172,2.6773,186.86,186.82,2.6777]
[1736886053566,12.36328199,186.87,186.8,0.21134]
[1736886053761,12.36328199,186.82,186.8,0.21134]
[1736886053968,18.00328199,186.82,186.8,0.21134]
[1736886054173,18.00328199,186.82,186.71,29.7978939]
[1736886054468,2.6782,186.8,186.75,2.6787]
[1736886054662,18.00328199,186.82,186.75,2.6787]
[1736886054862,2.6782,186.8,186.75,2.6787]
[1736886055670,2.6782,186.8,186.76,2.6786]
[1736886055873,12.36328199,186.79,186.7,14.01238199]
[1736886056064,12.36328199,186.79,186.72,2.6792]
[1736886057072,2.6785,186.77,186.73,2.6791]
[1736886057268,2.6785,186.77,186.7,1.6491]
[1736886057976,2.6788,186.76,186.71,2.6794]
[1736886058180,12.36328199,186.79,186.71,2.6794]
[1736886058476,2.6787,186.76,186.71,2.6794]
[1736886059079,5.64,186.75,186.71,2.6794]
[1736886059280,5.64,186.75,186.7,1.6491]
[1736886059671,5.64,186.75,186.61,1.6319]
[1736886059875,5.64,186.75,186.69,2.6795]
[1736886060081,5.64,186.75,186.64,12.36328199]
[1736886060280,5.64,186.75,186.67,12.36328199]
[1736886060680,5.64,186.75,186.72,2.6791]
[1736886061377,5.64,186.75,186.64,12.36328199]
[1736886061582,2.6794,186.71,186.67,2.6799]
[1736886061777,5.64,186.75,186.64,12.36328199]
[1736886061976,12.36328199,186.73,186.64,12.36328199]
[1736886062780,12.36328199,186.73,186.66,2.68]
[1736886062976,12.36328199,186.73,186.64,12.36328199]
[1736886063785,12.36328199,186.73,186.62,3.2883]
[1736886063980,12.36328199,186.73,186.62,1.5882]
[1736886064181,2.6798,186.68,186.64,2.6803]
[1736886064376,8.3198,186.68,186.62,1.5882]
[1736886064578,8.3198,186.68,186.57,114.94191369]
[1736886065985,8.3198,186.68,186.62,2.6805]
[1736886066178,8.3198,186.68,186.57,114.94191369]
[1736886066579,5.64,186.68,186.57,114.94191369]
[1736886068086,5.64,186.68,186.64,2.6803]
[1736886069285,5.64,186.68,186.65,2.6801]
[1736886070284,8.3198,186.68,186.6,12.36328199]
[1736886070582,5.62,186.7,186.6,12.36328199]
[1736886070978,5.64,186.73,186.63,12.36328199]
[1736886071682,8.3192,186.73,186.69,2.6797]
[1736886071881,195.0,186.74,186.66,12.36328199]
[1736886072178,5.64,186.77,186.69,12.36328199]
[1736886072385,5.64,186.78,186.69,12.36328199]
[1736886072777,8.3184,186.78,186.74,2.6789]
[1736886072975,5.64,186.78,186.74,2.6789]
[1736886073176,5.64,186.78,186.69,12.36328199]
[1736886073376,12.36328199,186.77,186.66,12.36328199]
[1736886073586,12.36328199,186.77,186.63,12.36328199]
[1736886073985,2.6792,186.73,186.69,2.6795]
[1736886074186,12.36328199,186.74,186.63,12.36328199]
[1736886074487,195.0,186.77,186.66,2.68]
[1736886074488,2.6796,186.7,186.66,2.68]
[1736886074687,8.3196,186.7,186.66,2.68]
[1736886075489,8.3196,186.7,186.67,2.6799]
[1736886075684,5.64,186.7,186.67,2.6799]
[1736886077290,8.3196,186.7,186.67,2.6799]
[1736886078690,195.0,186.77,186.64,19.85447211]
[1736886078889,5.64,186.76,186.65,1.6817]
[1736886079497,8.3187,186.76,186.72,2.6792]
[1736886080288,5.64,186.76,186.72,2.6792]
[1736886080488,2.6788,186.75,186.72,2.6792]
[1736886081393,8.3187,186.76,186.73,2.6791]
[1736886081984,2.6788,186.75,186.72,2.6792]
[1736886085599,8.3187,186.76,186.73,2.6791]
[1736886087191,8.3187,186.76,186.65,1.6817]
[1736886087192,5.64,186.76,186.75,2.6788]
[1736886087391,195.0,186.82,186.7,19.85447211]
[1736886087591,5.64,186.81,186.71,3.3575]
[1736886087891,8.318,186.81,186.78,2.6783]
[1736886088500,2.678,186.81,186.78,2.6783]
[1736886090599,8.298,186.81,186.78,2.6783]
[1736886091000,2.678,186.81,186.78,2.6783]
[1736886091199,200.62,186.82,186.71,3.3575]
[1736886091798,203.2978,186.82,186.74,2.6789]
[1736886092001,200.62,186.82,186.71,3.3575]
[1736886092301,200.62,186.82,186.74,2.6789]
[1736886092502,200.62,186.82,186.71,3.3575]
[1736886093102,5.62,186.82,186.79,2.6782]
[1736886093505,8.2978,186.82,186.71,3.3575]
[1736886093896,8.2978,186.82,186.78,2.6783]
[1736886095604,5.62,186.82,186.71,3.3575]
[1736886095799,5.62,186.82,186.77,2.6785]
[1736886096005,5.62,186.82,186.71,3.3575]
[1736886096407,16.29443936,186.83,186.71,3.3575]
[1736886097308,5.62,186.83,186.75,12.38798307]
[1736886097504,5.62,186.83,186.76,1.5949]
[1736886098810,8.2977,186.83,186.79,2.6781]
[1736886100906,5.62,186.83,186.72,12.38798307]
[1736886101315,12.38798307,186.87,186.75,12.38798307]
[1736886101510,5.62,186.86,186.75,12.38798307]
[1736886101706,12.38798307,186.87,186.75,12.38798307]
[1736886101906,18.00798307,186.87,186.75,12.38798307]
[1736886102211,18.00798307,186.87,186.78,12.38798307]
[1736886102412,18.00798307,186.87,186.85,2.6773]
[1736886102712,18.00798307,186.87,186.79,1.6037]
[1736886102909,18.00798307,186.87,186.84,2.6774]
[1736886103303,18.00798307,186.87,186.79,3.184]
[1736886104508,20.68518307,186.87,186.83,2.6776]
[1736886105608,20.68518307,186.87,186.79,3.184]
[1736886106209,20.68518307,186.87,186.83,2.6775]
[1736886106608,18.00798307,186.87,186.79,3.184]
[1736886106913,5.62,186.87,186.84,2.6774]
[1736886107613,5.62,186.87,186.79,3.184]
[1736886107814,2.6774,186.85,186.82,2.6777]
[1736886108010,18.00798307,186.87,186.79,3.184]
[1736886108412,18.00798307,186.87,186.71,1.6855]
[1736886108609,12.38798307,186.84,186.73,12.38798307]
[1736886109014,2.6778,186.82,186.79,2.6782]
[1736886109613,2.678,186.81,186.77,2.6784]
[1736886109818,12.38798307,186.84,186.73,12.38798307]
[1736886110319,2.6777,186.83,186.79,2.6781]
[1736886110512,2.6777,186.83,186.73,12.38798307]
[1736886111113,18.00798307,186.87,186.76,12.38798307]
[1736886111910,2.6772,186.86,186.79,2.6782]
[1736886112116,2.6772,186.86,186.76,12.38798307]
[1736886112612,2.6772,186.86,186.82,2.6777]
[1736886114021,2.6777,186.83,186.76,12.38798307]
[1736886114221,12.38798307,186.84,186.73,12.38798307]
[1736886114919,2.6779,186.82,186.73,12.38798307]
[1736886115512,2.6779,186.82,186.78,2.6783]
[1736886117326,2.6779,186.82,186.73,12.38798307]
[1736886117525,12.38798307,186.84,186.73,12.38798307]
[1736886117727,2.678,186.81,186.73,12.38798307]
[1736886117928,2.678,186.81,186.77,2.6784]
[1736886118228,2.6782,186.8,186.77,2.6784]
[1736886118624,12.38798307,186.81,186.72,1.5721]
[1736886118825,5.58,186.8,186.72,1.5721]
[1736886120330,8.2582,186.8,186.76,2.6785]
[1736886120535,8.2582,186.8,186.72,1.5721]
[1736886121236,5.58,186.8,186.71,3.254]
[1736886121532,5.58,186.8,186.7,113.18802596]
[1736886121533,12.38798307,186.78,186.7,100.80004289]
[1736886121931,5.58,186.8,186.7,113.18802596]
[1736886122130,5.58,186.8,186.79,2.6782]
[1736886123235,5.58,186.8,186.78,2.6783]
[1736886124436,5.58,186.8,186.7,113.18802596]
[1736886124635,8.2581,186.8,186.7,113.18802596]
[1736886125334,5.58,186.8,186.76,2.6786]
[1736886125536,2.6782,186.79,186.76,2.6786]
[1736886125735,5.58,186.8,186.76,2.6786]
[1736886126040,8.2581,186.8,186.76,2.6786]
[1736886127140,2.6785,186.78,186.74,2.6788]
[1736886127743,5.58,186.8,186.7,100.80004289]
[1736886128833,5.58,186.8,186.77,2.6784]
[1736886129144,2.678,186.81,186.72,12.38798307]
[1736886129943,2.678,186.81,186.74,2.6788]
[1736886130139,2.678,186.81,186.72,12.38798307]
[1736886130336,2.6778,186.82,186.72,12.38798307]
[1736886130845,11.5546,186.83,186.79,2.6781]
[1736886131239,8.8769,186.83,186.72,12.38798307]
[1736886131646,2.6779,186.82,186.78,2.6783]
[1736886132040,8.8769,186.83,186.72,12.38798307]
[1736886132344,2.6783,186.79,186.75,2.6787]
[1736886132940,2.6783,186.79,186.76,2.6786]
[1736886133337,2.6786,186.77,186.7,100.80004289]
[1736886133541,12.38798307,186.79,186.73,2.679]
[1736886133841,2.6787,186.76,186.73,2.679]
[1736886134038,15.06668307,186.76,186.73,2.679]
[1736886134343,20.64668307,186.76,186.73,2.679]
[1736886136637,5.58,186.76,186.7,100.80004289]
[1736886137435,195.0,186.82,186.7,100.80004289]
[1736886137436,5.58,186.81,186.72,12.38798307]
[1736886138243,5.58,186.81,186.79,2.6781]
[1736886139543,5.58,186.81,186.8,2.6781]
[1736886140337,2.6777,186.83,186.8,2.6781]
[1736886140543,2.6778,186.82,186.8,2.6781]
[1736886140745,2.6778,186.82,186.79,2.6782]
[1736886141251,12.38798307,186.82,186.74,1.6477]
[1736886141447,12.38798307,186.82,186.76,2.6786]
[1736886142146,2.6783,186.79,186.76,2.6786]
[1736886142657,12.38798307,186.79,186.69,1.6477]
[1736886142954,2.6789,186.74,186.69,1.6477]
[1736886143147,17.96798307,186.76,186.65,12.81020444]
[1736886143350,2.6792,186.72,186.64,9.09647926]
[1736886143552,2.6792,186.72,186.68,2.6797]
[1736886144052,2.6794,186.71,186.68,2.6797]
[1736886144351,2.6794,186.71,186.64,1.6561]
[1736886144555,12.38798307,186.73,186.64,1.6561]
[1736886146047,2.6793,186.72,186.68,2.6797]